bitfinex-derivatives/quotes_BTCF0:USTF0_20241006
["timestamp","ask_amount","ask_price","bid_price","bid_amount"]
[1728199617751,0.002,62014.0,62013.0,0.74469718]
[1728199617950,0.002,62014.0,62013.0,0.74469752]
[1728199619737,0.002,62014.0,62013.0,0.38389752]
[1728199619938,0.002,62014.0,62013.0,0.74469752]
[1728199620185,0.002,62014.0,62013.0,0.67915316]
[1728199620362,0.002,62014.0,62013.0,0.74469753]
[1728199621453,0.002,62014.0,62013.0,0.38389753]
[1728199621856,0.002,62014.0,62013.0,0.7446816]
[1728199622044,0.002,62014.0,62013.0,0.3838816]
[1728199622244,0.002,62014.0,62013.0,0.6346816]
[1728199622505,0.002,62014.0,62013.0,0.56913723]
[1728199622971,0.002,62014.0,62013.0,0.63468269]
[1728199623165,0.002,62014.0,62013.0,0.6346827]
[1728199623355,0.002,62014.0,62013.0,0.75666587]
[1728199623854,0.002,62014.0,62013.0,0.6598925]
[1728199624046,0.002,62014.0,62013.0,0.75666515]
[1728199624244,0.002,62014.0,62013.0,0.6598925]
[1728199624449,0.002,62014.0,62013.0,0.75666503]
[1728199624657,0.002,62014.0,62013.0,0.6598925]
[1728199625791,0.002,62014.0,62013.0,0.75666506]
[1728199626856,0.002,62014.0,62013.0,0.73145527]
[1728199628757,0.002,62014.0,62013.0,0.63468271]
[1728199629237,0.002,62014.0,62013.0,0.63468196]
[1728199629455,0.002,62014.0,62013.0,0.27388196]
[1728199629658,0.002,62014.0,62013.0,0.63468196]
[1728199631161,0.002,62014.0,62013.0,0.27388196]
[1728199631952,0.002,62014.0,62013.0,0.63468196]
[1728199632156,0.002,62014.0,62013.0,0.27388196]
[1728199632396,0.002,62014.0,62013.0,0.56913723]
[1728199632702,0.002,62014.0,62013.0,0.63468206]
[1728199634148,0.002,62014.0,62013.0,0.27388206]
[1728199634349,0.002,62014.0,62013.0,0.63468206]
[1728199634550,0.002,62014.0,62013.0,0.27388206]
[1728199635152,0.002,62014.0,62013.0,0.63468206]
[1728199635503,0.002,62014.0,62013.0,0.20833723]
[1728199635702,0.002,62014.0,62013.0,0.27388208]
[1728199636268,0.002,62014.0,62013.0,0.2740496]
[1728199636860,0.002,62014.0,62013.0,0.6348496]
[1728199637253,0.002,62014.0,62013.0,0.2740496]
[1728199637652,0.002,62014.0,62013.0,0.6348496]
[1728199638464,0.002,62014.0,62013.0,0.2740496]
[1728199638966,0.002,62014.0,62013.0,0.6348496]
[1728199639261,0.002,62014.0,62013.0,0.2740496]
[1728199639660,0.002,62014.0,62013.0,0.6348496]
[1728199641061,0.002,62014.0,62013.0,0.63486431]
[1728199642463,0.002,62014.0,62013.0,0.20955931]
[1728199642944,0.066504,62014.0,62013.0,0.50481446]
[1728199642975,0.128404,62014.0,62013.0,0.57036041]
[1728199643331,0.128404,62014.0,62013.0,0.5473725]
[1728199643332,1.212164,62014.0,62013.0,0.5473725]
[1728199643573,1.212164,62014.0,62013.0,0.013]
[1728199643864,0.064506,62012.0,62011.0,0.06452129]
[1728199644065,0.174506,62012.0,62011.0,0.06452129]
[1728199644265,0.064507,62011.0,62010.0,0.0113]
[1728199644452,0.064509,62009.0,62007.0,0.0113]
[1728199644657,0.0322,62008.0,62007.0,0.0113]
[1728199644856,0.0322,62008.0,62006.0,0.08064568]
[1728199645059,0.096711,62008.0,62006.0,0.08064568]
[1728199645265,0.096711,62008.0,62005.0,0.08064568]
[1728199645463,0.096711,62008.0,62006.0,0.02521364]
[1728199645659,0.096711,62008.0,62005.0,0.08064568]
[1728199645660,0.580551,62008.0,62007.0,0.012]
[1728199645861,1.180551,62008.0,62007.0,0.012]
[1728199646296,0.064513,62006.0,62004.0,0.0113]
[1728199646475,0.064513,62006.0,62005.0,0.02521364]
[1728199646865,0.658353,62006.0,62005.0,0.02521364]
[1728199647762,0.659353,62006.0,62005.0,0.02521364]
[1728199647973,0.175513,62006.0,62005.0,0.02521364]
[1728199649498,0.175513,62006.0,62005.0,0.02521377]
[1728199649867,0.176513,62006.0,62005.0,0.02621377]
[1728199651167,0.176513,62006.0,62005.0,0.001]
[1728199656878,0.066513,62006.0,62005.0,0.111]
[1728199657472,0.002,62006.0,62005.0,0.111]
[1728199657673,0.002,62006.0,62005.0,0.001]
[1728199659085,0.002,62006.0,62005.0,0.02621368]
[1728199659288,0.002,62006.0,62005.0,0.001]
[1728199668889,0.002,62006.0,62005.0,0.18200283]
[1728199669090,0.002,62006.0,62005.0,0.10135715]
[1728199669489,0.002,62006.0,62005.0,0.10137932]
[1728199671494,0.002,62006.0,62005.0,0.001]
[1728199671710,0.002,62006.0,62005.0,0.10142498]
[1728199672287,0.002,62006.0,62005.0,0.22343036]
[1728199672895,0.002,62006.0,62005.0,0.12663851]
[1728199675300,0.002,62006.0,62005.0,0.12663848]
[1728199675883,0.002,62006.0,62005.0,0.22343565]
[1728199676293,0.112,62006.0,62005.0,0.12663848]
[1728199681094,0.112,62006.0,62005.0,0.10142498]
[1728199681344,0.176513,62006.0,62005.0,0.10142498]
[1728199681582,0.176513,62006.0,62005.0,0.12663904]
[1728199684517,0.176513,62006.0,62005.0,0.10142498]
[1728199684696,0.176513,62006.0,62005.0,0.12663891]
[1728199686188,0.176513,62006.0,62005.0,0.20730237]
[1728199686391,0.176513,62006.0,62005.0,0.001]
[1728199691324,0.176513,62006.0,62005.0,0.18236306]
[1728199691417,0.176513,62006.0,62005.0,0.18236277]
[1728199692306,0.176513,62006.0,62005.0,0.08166346]
[1728199696803,0.176513,62006.0,62005.0,0.001]
[1728199709607,0.176513,62006.0,62005.0,0.06551738]
[1728199710818,0.537313,62006.0,62005.0,0.06551738]
[1728199711916,0.176513,62006.0,62005.0,0.06551738]
[1728199712119,0.537313,62006.0,62005.0,0.06551738]
[1728199716914,0.176513,62006.0,62005.0,0.06551738]
[1728199717110,0.537313,62006.0,62005.0,0.06551738]
[1728199718212,0.176513,62006.0,62005.0,0.06551738]
[1728199718407,0.537313,62006.0,62005.0,0.06551738]
[1728199721017,0.537313,62006.0,62005.0,0.001]
[1728199721817,0.176513,62006.0,62005.0,0.001]
[1728199722015,0.537313,62006.0,62005.0,0.001]
[1728199729135,0.176513,62006.0,62005.0,0.001]
[1728199729325,0.537313,62006.0,62005.0,0.001]
[1728199733327,0.537313,62006.0,62005.0,0.0313]
[1728199737733,0.176513,62006.0,62005.0,0.0313]
[1728199737962,0.537313,62006.0,62005.0,0.0313]
[1728199738243,0.537313,62006.0,62005.0,0.09583472]
[1728199738632,0.176513,62006.0,62005.0,0.09583472]
[1728199738827,0.537313,62006.0,62005.0,0.09583472]
[1728199739935,0.176513,62006.0,62005.0,0.09583472]
[1728199740236,0.537313,62006.0,62005.0,0.09583472]
[1728199740835,0.176513,62006.0,62005.0,0.09583472]
[1728199741036,0.537313,62006.0,62005.0,0.09583472]
[1728199744142,0.537313,62006.0,62005.0,0.0313]
[1728199751255,0.537313,62006.0,62005.0,0.09585346]
[1728199758261,0.537313,62006.0,62005.0,0.0313]
[1728199769966,0.176513,62006.0,62005.0,0.0313]
[1728199770167,0.537313,62006.0,62005.0,0.0313]
[1728199770370,0.176513,62006.0,62005.0,0.0313]
[1728199770571,0.537313,62006.0,62005.0,0.0313]
[1728199779369,0.427313,62006.0,62005.0,0.0313]
[1728199779571,0.537313,62006.0,62005.0,0.0313]
[1728199779877,0.537313,62006.0,62005.0,0.09585067]
[1728199780373,0.537313,62006.0,62005.0,0.0313]
[1728199784976,0.176513,62006.0,62005.0,0.0313]
[1728199785174,0.537313,62006.0,62005.0,0.0313]
[1728199785367,0.176513,62006.0,62005.0,0.0313]
[1728199785575,0.537313,62006.0,62005.0,0.0313]
[1728199788577,0.176513,62006.0,62005.0,0.0313]
[1728199788776,0.537313,62006.0,62005.0,0.09585196]
[1728199789982,0.176513,62006.0,62005.0,0.09585196]
[1728199790179,0.537313,62006.0,62005.0,0.09585196]
[1728199790388,0.176513,62006.0,62005.0,0.09585196]
[1728199790593,0.537313,62006.0,62005.0,0.09585196]
[1728199790882,0.176513,62006.0,62005.0,0.0313]
[1728199791231,0.537313,62006.0,62005.0,0.0313]
[1728199801887,0.176513,62006.0,62005.0,0.0313]
[1728199803826,0.176513,62006.0,62005.0,0.21154895]
[1728199805302,0.176513,62006.0,62005.0,0.0313]
[1728199808012,0.176513,62006.0,62005.0,0.11196346]
[1728199808411,0.176513,62006.0,62005.0,0.0313]
[1728199826736,0.176513,62006.0,62005.0,0.09583223]
[1728199833845,0.176513,62006.0,62005.0,0.0313]
[1728199839055,0.176513,62006.0,62005.0,0.11196346]
[1728199839547,0.176513,62006.0,62005.0,0.0313]
[1728199839758,0.176513,62006.0,62005.0,0.11196346]
[1728199839953,0.176513,62006.0,62005.0,0.21181431]
[1728199840861,0.176513,62006.0,62005.0,0.0313]
[1728199848952,0.176513,62006.0,62005.0,0.21201178]
[1728199850267,0.176513,62006.0,62005.0,0.212004]
[1728199855057,0.176513,62006.0,62005.0,0.11196346]
[1728199855265,0.176513,62006.0,62005.0,0.21199727]
[1728199856457,0.176513,62006.0,62005.0,0.2120117]
[1728199857866,0.176513,62006.0,62005.0,0.0313]
[1728199858666,0.537313,62006.0,62005.0,0.0313]
[1728199860380,0.176513,62006.0,62005.0,0.0313]
[1728199860868,0.537313,62006.0,62005.0,0.0313]
[1728199861368,0.176513,62006.0,62005.0,0.0313]
[1728199861572,0.537313,62006.0,62005.0,0.0313]
[1728199861867,0.176513,62006.0,62005.0,0.11196346]
[1728199862057,0.176513,62006.0,62005.0,0.2121334]
[1728199863327,0.176513,62006.0,62005.0,0.21212087]
[1728199863668,0.176513,62006.0,62005.0,0.11196346]
[1728199863871,0.176513,62006.0,62005.0,0.0313]
[1728199875472,0.176513,62006.0,62005.0,0.19645038]
[1728199875862,0.176513,62006.0,62005.0,0.13089265]
[1728199877575,0.176513,62006.0,62005.0,0.13115319]
[1728199878966,0.176513,62006.0,62005.0,0.0313]
[1728199887076,0.176513,62006.0,62005.0,0.13113901]
[1728199888686,0.176513,62006.0,62005.0,0.0313]
[1728199893910,0.176513,62006.0,62005.0,0.13113753]
[1728199893923,0.176513,62006.0,62005.0,0.21178829]
[1728199894388,0.176513,62006.0,62005.0,0.0313]
[1728199902190,0.176513,62006.0,62005.0,0.13128449]
[1728199906587,0.176513,62006.0,62005.0,0.13162839]
[1728199909528,0.176513,62006.0,62005.0,0.0313]
[1728199910584,0.176513,62006.0,62005.0,0.09685778]
[1728199912505,0.002,62006.0,62005.0,0.27785213]
[1728199912696,0.002,62006.0,62005.0,0.19716573]
[1728199913081,0.002,62006.0,62005.0,0.15682106]
[1728199913456,0.002,62006.0,62005.0,0.19716205]
[1728199913487,0.002,62006.0,62005.0,0.17194894]
[1728199914217,0.002,62006.0,62005.0,0.15682105]
[1728199914243,0.002,62006.0,62005.0,0.19716202]
[1728199914497,0.066513,62006.0,62005.0,0.27781384]
[1728199914892,0.066513,62006.0,62005.0,0.17750589]
[1728199916331,0.066513,62006.0,62005.0,0.09685407]
[1728199916538,0.066513,62006.0,62005.0,0.09685607]
[1728199917389,0.066513,62006.0,62005.0,0.19658701]
[1728199919818,0.066513,62006.0,62005.0,0.19658703]
[1728199920299,0.176513,62006.0,62005.0,0.19658703]
[1728199920701,0.176513,62006.0,62005.0,0.19672418]
[1728199921004,0.176513,62006.0,62005.0,0.09685609]
[1728199921304,0.176513,62006.0,62005.0,0.19672368]
[1728199922219,0.176513,62006.0,62005.0,0.13116759]
[1728199922502,0.176513,62006.0,62005.0,0.19672369]
[1728199924400,0.176513,62006.0,62005.0,0.19671281]
[1728199928756,0.176513,62006.0,62005.0,0.13115671]
[1728199928977,0.176513,62006.0,62005.0,0.15637059]
[1728199929109,0.176513,62006.0,62005.0,0.19671281]
[1728199932278,0.176513,62006.0,62005.0,0.13115671]
[1728199932423,0.176513,62006.0,62005.0,0.0968561]
[1728199932623,0.176513,62006.0,62005.0,0.09685612]
[1728199939215,0.176513,62006.0,62005.0,0.17750749]
[1728199939524,0.176513,62006.0,62005.0,0.19686812]
[1728199942231,0.176513,62006.0,62005.0,0.1968681]
[1728199942621,0.176513,62006.0,62005.0,0.131312]
[1728199942826,0.176513,62006.0,62005.0,0.1968681]
[1728199945671,0.176513,62006.0,62005.0,0.131312]
[1728199945842,0.176513,62006.0,62005.0,0.1968681]
[1728199949171,0.176513,62006.0,62005.0,0.19686793]
[1728199950922,0.176513,62006.0,62005.0,0.09685593]
[1728199951323,0.176513,62006.0,62005.0,0.1970248]
[1728199952424,0.176513,62006.0,62005.0,0.13146887]
[1728199952620,0.176513,62006.0,62005.0,0.1970248]
[1728199953123,0.176513,62006.0,62005.0,0.09685593]
[1728199955529,0.066513,62006.0,62005.0,0.09685593]
[1728199958025,0.066513,62006.0,62005.0,0.19702098]
[1728199958226,0.066513,62006.0,62005.0,0.29382648]
[1728199962437,0.066513,62006.0,62005.0,0.19702098]
[1728199962636,0.066513,62006.0,62005.0,0.27766943]
[1728199963581,0.066513,62006.0,62005.0,0.2121135]
[1728199963748,0.066513,62006.0,62005.0,0.27766959]
[1728199965533,0.066513,62006.0,62005.0,0.27775833]
[1728199969742,0.066513,62006.0,62005.0,0.19710988]
[1728199972940,0.066513,62006.0,62005.0,0.29391538]
[1728199973140,0.002,62006.0,62005.0,0.35842238]
[1728199973742,0.002,62006.0,62005.0,0.26161688]
[1728199974037,0.064499,62013.0,62008.0,0.174504]
[1728199974477,0.064499,62013.0,62012.0,0.11]
[1728199974506,0.064499,62013.0,62012.0,0.27580309]
[1728199974833,0.064499,62013.0,62012.0,0.1755493]
[1728199975352,0.065499,62013.0,62012.0,0.1755493]
[1728199977139,0.066499,62013.0,62012.0,0.1755493]
[1728199977362,0.066499,62013.0,62012.0,0.13521127]
[1728199977742,0.066499,62013.0,62012.0,0.14021127]
[1728199978142,0.066499,62013.0,62012.0,0.16324439]
[1728199978350,0.066499,62013.0,62012.0,0.13803312]
[1728199978542,0.066499,62013.0,62012.0,0.16324455]
[1728199980671,0.066499,62013.0,62012.0,0.13803312]
[1728199981118,0.066499,62013.0,62012.0,0.16324439]
[1728199983555,0.066499,62013.0,62012.0,0.16324438]
[1728199985658,0.002,62013.0,62012.0,0.27617929]
[1728199985853,0.002,62013.0,62012.0,0.44105257]
[1728199986047,0.002,62013.0,62012.0,0.92481257]
[1728199986356,0.002,62013.0,62012.0,1.28561257]
[1728199987755,0.002,62013.0,62012.0,1.28554757]
[1728199990257,0.002,62013.0,62012.0,1.28553881]
[1728199991859,0.002,62013.0,62012.0,0.80177881]
[1728199992256,0.002,62013.0,62012.0,0.88211565]
[1728199992652,0.002,62013.0,62012.0,0.80177881]
[1728199993363,0.002,62013.0,62012.0,1.16257881]
[1728199993683,0.002,62013.0,62012.0,1.16257892]
[1728199994260,0.002,62013.0,62012.0,1.12224653]
[1728199994862,0.002,62013.0,62012.0,1.16257893]
[1728199996973,0.002,62013.0,62012.0,1.16257868]
[1728199997268,0.002,62013.0,62012.0,1.12224644]
[1728199997282,0.002,62013.0,62012.0,1.16248868]
[1728199999262,0.002,62013.0,62012.0,1.25921719]
[1728199999761,0.002,62013.0,62012.0,1.16248868]
[1728200000456,0.0076,62018.0,62012.0,1.09798868]
[1728200000661,0.00241934,62019.0,62018.0,0.064494]
[1728200001061,0.00241934,62019.0,62018.0,0.1539698]
[1728200001369,0.00241934,62019.0,62018.0,0.08970047]
[1728200001672,0.00241934,62019.0,62018.0,0.45050047]
[1728200001974,0.01341934,62019.0,62018.0,0.45050047]
[1728200002180,0.01341934,62019.0,62018.0,0.51476778]
[1728200002360,0.01341934,62019.0,62018.0,0.45050047]
[1728200002970,0.02241934,62019.0,62018.0,0.45050047]
[1728200003921,0.02241934,62019.0,62018.0,0.425294]
[1728200004108,0.02241934,62019.0,62018.0,0.45050042]
[1728200004402,0.02241934,62019.0,62018.0,0.425294]
[1728200004975,0.02241934,62019.0,62018.0,0.45050042]
[1728200005175,0.02241934,62019.0,62018.0,0.425294]
[1728200005377,0.02241934,62019.0,62018.0,0.45050042]
[1728200005675,0.02241934,62019.0,62018.0,0.425294]
[1728200006177,0.0038,62025.0,62022.0,0.064489]
[1728200006379,0.068284,62027.0,62024.0,0.15819776]
[1728200006380,0.064484,62027.0,62024.0,0.15819776]
[1728200006678,0.064484,62027.0,62025.0,0.04819776]
[1728200007880,0.064484,62027.0,62025.0,0.06426368]
[1728200008071,0.078484,62027.0,62025.0,0.06426368]
[1728200008684,0.014,62027.0,62025.0,0.06426368]
[1728200008879,0.014,62027.0,62026.0,0.06426368]
[1728200009086,0.014,62027.0,62024.0,0.174487]
[1728200009376,0.014,62027.0,62024.0,0.25482367]
[1728200009581,0.023,62027.0,62025.0,0.001]
[1728200009777,0.023,62027.0,62025.0,0.002]
[1728200009778,0.013,62027.0,62025.0,0.002]
[1728200010277,0.009,62027.0,62025.0,0.001]
[1728200010590,0.013,62027.0,62025.0,0.001]
[1728200011003,0.013,62027.0,62025.0,0.002]
[1728200011184,0.018,62027.0,62026.0,0.064485]
[1728200012789,0.005,62027.0,62026.0,0.075485]
[1728200012983,0.001,62027.0,62026.0,0.075485]
[1728200013178,0.002,62027.0,62026.0,0.16882167]
[1728200013781,0.001,62027.0,62026.0,0.15582167]
[1728200013987,0.002,62027.0,62026.0,0.16882167]
[1728200014257,0.002,62027.0,62026.0,0.52962167]
[1728200014951,0.002,62027.0,62026.0,0.449285]
[1728200015126,0.002,62027.0,62026.0,0.52962167]
[1728200015182,0.002,62027.0,62026.0,0.738617]
[1728200016380,0.002,62027.0,62026.0,0.63962167]
[1728200016574,0.002,62027.0,62026.0,0.73856077]
[1728200017816,0.002,62027.0,62026.0,0.37776077]
[1728200017994,0.002,62027.0,62026.0,0.73856077]
[1728200018282,0.002,62027.0,62026.0,0.63962167]
[1728200019084,0.002,62027.0,62026.0,0.27882167]
[1728200019281,0.002,62027.0,62026.0,0.63962167]
[1728200023893,0.002,62027.0,62026.0,0.27882167]
[1728200024092,0.002,62027.0,62026.0,0.63962167]
[1728200025796,0.002,62027.0,62026.0,0.559285]
[1728200026090,0.002,62027.0,62026.0,0.62350259]
[1728200026690,0.176484,62027.0,62026.0,0.3848]
[1728200026884,0.537284,62027.0,62026.0,0.024]
[1728200027085,0.06449,62022.0,62021.0,0.0113]
[1728200027378,0.064493,62019.0,62018.0,0.0113]
[1728200027583,0.064494,62018.0,62017.0,0.04817418]
[1728200027901,0.095094,62018.0,62017.0,0.04817418]
[1728200028189,0.095094,62018.0,62016.0,0.04817418]
[1728200028433,0.11,62017.0,62016.0,0.04817418]
[1728200028728,0.174495,62017.0,62016.0,0.04817418]
[1728200028995,0.174495,62017.0,62015.0,0.42027418]
[1728200029186,0.174495,62017.0,62015.0,0.3721]
[1728200029586,0.174495,62017.0,62015.0,0.43631759]
[1728200030185,0.0314,62016.0,62015.0,0.43631759]
[1728200030394,0.0314,62016.0,62015.0,0.42501759]
[1728200031194,0.0314,62016.0,62015.0,0.3608]
[1728200032294,0.0314,62016.0,62015.0,0.3618]
[1728200032295,0.0324,62016.0,62015.0,0.3618]
[1728200032892,0.0334,62016.0,62015.0,0.3628]
[1728200033293,0.0334,62016.0,62015.0,0.42701759]
[1728200034199,0.0334,62016.0,62015.0,0.3628]
[1728200035617,0.0334,62016.0,62015.0,0.002]
[1728200037597,0.0334,62016.0,62015.0,0.0501296]
[1728200038192,0.0334,62016.0,62015.0,0.002]
[1728200041098,0.002,62016.0,62015.0,0.002]
[1728200048313,0.002,62016.0,62015.0,0.06621759]
[1728200048607,0.002,62016.0,62015.0,0.002]
[1728200052706,0.002,62016.0,62015.0,0.06619353]
[1728200053312,0.002,62016.0,62015.0,0.06620997]
[1728200053610,0.002,62016.0,62015.0,0.002]
[1728200056303,0.002,62016.0,62015.0,0.10163213]
[1728200058905,0.002,62016.0,62015.0,0.101643]
[1728200059814,0.002,62016.0,62015.0,0.19837151]
[1728200063719,0.002,62016.0,62015.0,0.19852639]
[1728200065397,0.002,62016.0,62015.0,0.22373567]
[1728200065518,0.002,62016.0,62015.0,0.24894495]
[1728200066925,0.002,62016.0,62015.0,0.15221644]
[1728200068567,0.002,62016.0,62015.0,0.15221618]
[1728200068725,0.002,62016.0,62015.0,0.15219932]
[1728200069424,0.002,62016.0,62015.0,0.12699004]
[1728200070216,0.002,62016.0,62015.0,0.16732448]
[1728200072323,0.002,62016.0,62015.0,0.10178102]
[1728200072428,0.002,62016.0,62015.0,0.16732445]
[1728200073430,0.002,62016.0,62015.0,0.16729584]
[1728200075846,0.002,62016.0,62015.0,0.10175241]
[1728200076130,0.002,62016.0,62015.0,0.1672957]
[1728200079712,0.002,62016.0,62015.0,0.16729568]
[1728200081322,0.002,62016.0,62015.0,0.16744022]
[1728200082529,0.002,62016.0,62015.0,0.16744035]
[1728200082727,0.002,62016.0,62015.0,0.26416886]
[1728200082972,0.002,62016.0,62015.0,0.19862546]
[1728200083154,0.002,62016.0,62015.0,0.23895986]
[1728200083347,0.002,62016.0,62015.0,0.26417796]
[1728200088140,0.002,62016.0,62015.0,0.26422645]
[1728200089727,0.002,62016.0,62015.0,0.16749794]
[1728200090232,0.002,62016.0,62015.0,0.10195454]
[1728200090441,0.002,62016.0,62015.0,0.16749794]
[1728200092943,0.002,62016.0,62015.0,0.1676362]
[1728200097025,0.002,62016.0,62015.0,0.1020928]
[1728200097511,0.002,62016.0,62015.0,0.23317964]
[1728200097556,0.002,62016.0,62015.0,0.20797063]
[1728200098339,0.002,62016.0,62015.0,0.14242721]
[1728200098539,0.002,62016.0,62015.0,0.20797063]
[1728200099645,0.002,62016.0,62015.0,0.16763622]
[1728200099851,0.002,62016.0,62015.0,0.26419205]
[1728200100561,0.066496,62016.0,62015.0,0.26419205]
[1728200101451,0.066496,62016.0,62015.0,0.26352273]
[1728200103095,0.066496,62016.0,62015.0,0.26352311]
[1728200106251,0.066496,62016.0,62015.0,0.26352119]
[1728200106471,0.066496,62016.0,62015.0,0.2635215]
[1728200106657,0.066496,62016.0,62015.0,0.2483959]
[1728200106864,0.066496,62016.0,62015.0,0.26352142]
[1728200112873,0.066496,62016.0,62015.0,0.16696559]
[1728200113478,0.066496,62016.0,62015.0,0.16696585]
[1728200115660,0.066496,62016.0,62015.0,0.16717796]
[1728200116263,0.176496,62016.0,62015.0,0.16717796]
[1728200117073,0.176496,62016.0,62015.0,0.10163367]
[1728200117342,0.176496,62016.0,62015.0,0.16717786]
[1728200118870,0.176496,62016.0,62015.0,0.2476726]
[1728200119171,0.176496,62016.0,62015.0,0.06754419]
[1728200119886,0.176496,62016.0,62015.0,0.16718451]
[1728200120562,0.176496,62016.0,62015.0,0.16718361]
[1728200121973,0.176496,62016.0,62015.0,0.12684872]
[1728200122170,0.176496,62016.0,62015.0,0.16718439]
[1728200122365,0.176496,62016.0,62015.0,0.12684872]
[1728200123298,0.176496,62016.0,62015.0,0.10163942]
[1728200123516,0.176496,62016.0,62015.0,0.12684921]
[1728200124469,0.176496,62016.0,62015.0,0.1671849]
[1728200125173,0.176496,62016.0,62015.0,0.16733618]
[1728200126279,0.176496,62016.0,62015.0,0.24780426]
[1728200126475,0.176496,62016.0,62015.0,0.24780419]
[1728200126721,0.176496,62016.0,62015.0,0.20746858]
[1728200126881,0.176496,62016.0,62015.0,0.24780433]
[1728200127577,0.176496,62016.0,62015.0,0.18225874]
[1728200127969,0.066496,62016.0,62015.0,0.002]
[1728200128171,0.176496,62016.0,62015.0,0.002]
[1728200130878,0.176496,62016.0,62015.0,0.06636976]
[1728200131173,0.176496,62016.0,62015.0,0.06636667]
[1728200134882,0.176496,62016.0,62015.0,0.002]
[1728200135385,0.066496,62016.0,62015.0,0.002]
[1728200135574,0.176496,62016.0,62015.0,0.002]
[1728200139076,0.176496,62016.0,62015.0,0.08246804]
[1728200139723,0.176496,62016.0,62015.0,0.002]
[1728200139935,0.176496,62016.0,62015.0,0.18239011]
[1728200140085,0.176496,62016.0,62015.0,0.20760017]
[1728200140379,0.176496,62016.0,62015.0,0.20758617]
[1728200141378,0.176496,62016.0,62015.0,0.1076641]
[1728200141680,0.176496,62016.0,62015.0,0.20757485]
[1728200142680,0.176496,62016.0,62015.0,0.12712081]
[1728200142885,0.176496,62016.0,62015.0,0.02721006]
[1728200146501,0.176496,62016.0,62015.0,0.002]
[1728200146904,0.176496,62016.0,62015.0,0.02720991]
[1728200149930,0.176496,62016.0,62015.0,0.10189249]
[1728200150221,0.176496,62016.0,62015.0,0.12710234]
[1728200153695,0.176496,62016.0,62015.0,0.12714261]
[1728200153889,0.176496,62016.0,62015.0,0.16747838]
[1728200155682,0.066496,62016.0,62015.0,0.16747838]
[1728200155883,0.176496,62016.0,62015.0,0.16747838]
[1728200156916,0.176496,62016.0,62015.0,0.10193276]
[1728200157137,0.176496,62016.0,62015.0,0.16747837]
[1728200158496,0.176496,62016.0,62015.0,0.24795774]
[1728200159195,0.176496,62016.0,62015.0,0.2481036]
[1728200159686,0.066496,62016.0,62015.0,0.2481036]
[1728200160005,0.176496,62016.0,62015.0,0.2481036]
[1728200160187,0.176496,62016.0,62015.0,0.16762423]
[1728200162132,0.176496,62016.0,62015.0,0.10207862]
[1728200162385,0.176496,62016.0,62015.0,0.16762382]
[1728200164998,0.176496,62016.0,62015.0,0.0675452]
[1728200165943,0.176496,62016.0,62015.0,0.002]
[1728200166198,0.176496,62016.0,62015.0,0.06754532]
[1728200168823,0.176496,62016.0,62015.0,0.002]
[1728200169093,0.176496,62016.0,62015.0,0.06754543]
[1728200171995,0.176496,62016.0,62015.0,0.16769334]
[1728200172396,0.176496,62016.0,62015.0,0.16769799]
[1728200175633,0.176496,62016.0,62015.0,0.12736234]
[1728200175897,0.176496,62016.0,62015.0,0.16769806]
[1728200177307,0.176496,62016.0,62015.0,0.16769809]
[1728200178399,0.176496,62016.0,62015.0,0.10215256]
[1728200179812,0.176496,62016.0,62015.0,0.18268654]
[1728200180007,0.176496,62016.0,62015.0,0.002]
[1728200202025,0.176496,62016.0,62015.0,0.08253398]
[1728200204912,0.176496,62016.0,62015.0,0.18301034]
[1728200210120,0.176496,62016.0,62015.0,0.002]
[1728200217031,0.176496,62016.0,62015.0,0.18271826]
[1728200218825,0.176496,62016.0,62015.0,0.10218428]
[1728200226831,0.176496,62016.0,62015.0,0.18280655]
[1728200227335,0.176496,62016.0,62015.0,0.18280588]
[1728200229437,0.176496,62016.0,62015.0,0.1821972]
[1728200232042,0.176496,62016.0,62015.0,0.002]
[1728200240148,0.176496,62016.0,62015.0,0.10173211]
[1728200241541,0.176496,62016.0,62015.0,0.18237963]
[1728200241743,0.176496,62016.0,62015.0,0.10173211]
[1728200242260,0.176496,62016.0,62015.0,0.18238027]
[1728200242546,0.176496,62016.0,62015.0,0.10173211]
[1728200244043,0.176496,62016.0,62015.0,0.10174982]
[1728200250653,0.176496,62016.0,62015.0,0.18241949]
[1728200250841,0.176496,62016.0,62015.0,0.10174982]
[1728200251660,0.066496,62016.0,62015.0,0.10174982]
[1728200251854,0.066496,62016.0,62015.0,0.43834858]
[1728200252052,0.066496,62016.0,62015.0,0.43834618]
[1728200252452,0.002,62016.0,62015.0,0.43834618]
[1728200252836,0.002,62016.0,62015.0,0.43834363]
[1728200255258,0.002,62016.0,62015.0,0.3417878]
[1728200255556,0.002,62016.0,62015.0,0.7025878]
[1728200255801,0.002,62016.0,62015.0,0.63704682]
[1728200256152,0.002,62016.0,62015.0,0.7025872]
[1728200256396,0.002,62016.0,62015.0,0.70258723]
[1728200257356,0.002,62016.0,62015.0,0.78319052]
[1728200257552,0.002,62016.0,62015.0,0.42239052]
[1728200257859,0.002,62016.0,62015.0,0.78319052]
[1728200258360,0.002,62016.0,62015.0,0.78307788]
[1728200259271,0.002,62016.0,62015.0,0.63693418]
[1728200259455,0.002,62016.0,62015.0,0.66214195]
[1728200259664,0.002,62016.0,62015.0,0.30134195]
[1728200259958,0.002,62016.0,62015.0,0.66214195]
[1728200260960,0.002,62016.0,62015.0,0.30134195]
[1728200261168,0.002,62016.0,62015.0,0.66214195]
[1728200261860,0.002,62016.0,62015.0,0.66218976]
[1728200262158,0.002,62016.0,62015.0,0.30138976]
[1728200262683,0.002,62016.0,62015.0,0.63698199]
[1728200262888,0.002,62016.0,62015.0,0.66218927]